lending/lending_fUSD_20260104
["ID","MTS","AMOUNT","RATE_DAILY","PERIOD"]
[400443094,1767557441286,-500.0,0.00016438,2]
[400443095,1767557441297,-500.0,0.00016438,2]
[400443096,1767557441307,-500.0,0.00016438,2]
[400443097,1767557441317,-500.0,0.00016438,2]
[400443098,1767557441326,-500.0,0.00016438,2]
[400443099,1767557441336,-500.0,0.00016438,2]
[400443100,1767557441346,-500.0,0.00016438,2]
[400443101,1767557441356,-500.0,0.00016438,2]
[400443102,1767557441365,-500.0,0.00016438,2]
[400443103,1767557441374,-500.0,0.00016438,2]
[400443104,1767557441383,-500.0,0.00016438,2]
[400443105,1767557441393,-500.0,0.00016438,2]
[400443106,1767557441403,-500.0,0.00016438,2]
[400443107,1767557441412,-500.0,0.00016438,2]
[400443108,1767557441422,-500.0,0.00016438,2]
[400443109,1767557441432,-500.0,0.00016438,2]
[400443110,1767557441442,-500.0,0.00016438,2]
[400443111,1767557441453,-500.0,0.00016438,2]
[400443112,1767557441462,-500.0,0.00016438,2]
[400443113,1767557441471,-500.0,0.00016438,2]
[400443114,1767557441480,-500.0,0.00016438,2]
[400443115,1767557441491,-500.0,0.00016438,2]
[400443116,1767557441501,-500.0,0.00016438,2]
[400443117,1767557441510,-500.0,0.00016438,2]
[400443118,1767557441520,-500.0,0.00016438,2]
[400443119,1767557441529,-500.0,0.00016438,2]
[400443120,1767557441538,-500.0,0.00016438,2]
[400443121,1767557441548,-500.0,0.00016438,2]
[400443122,1767557441557,-500.0,0.00016438,2]
[400443123,1767557441566,-500.0,0.00016438,2]
[400443124,1767557441574,-500.0,0.00016438,2]
[400443125,1767557441583,-500.0,0.00016438,2]
[400443126,1767557441593,-500.0,0.00016438,2]
[400443127,1767557441603,-485.30887337,0.00016438,2]
[400443128,1767557441611,-500.0,0.00016438,2]
[400443129,1767557441621,-716.08906364,0.00016438,2]
[400443130,1767557441631,-716.08906364,0.00016438,2]
[400443131,1767557441640,-716.08906364,0.00016438,2]
[400443132,1767557441649,-716.08906364,0.00016438,2]
[400443133,1767557441658,-716.08906364,0.00016438,2]
[400443134,1767557441671,-716.08906364,0.00016438,2]
[400443135,1767557441680,-716.08906364,0.00016438,2]
[400443136,1767557441689,-716.08906364,0.00016438,2]
[400443137,1767557441698,-716.08906364,0.00016438,2]
[400443138,1767557441707,-716.08906364,0.00016438,2]
[400443139,1767557441717,-716.08906364,0.00016438,2]
[400443140,1767557441726,-716.08906364,0.00016438,2]
[400443141,1767557441736,-716.08906364,0.00016438,2]
[400443142,1767557441747,-716.08906364,0.00016438,2]
[400443143,1767557441756,-716.08906364,0.00016438,2]
[400443144,1767557441764,-716.08906364,0.00016438,2]
[400443145,1767557441775,-716.08906364,0.00016438,2]
[400443146,1767557441786,-583.71492889,0.00016438,2]
[400443147,1767557441803,-132.37413475,0.00016438,2]
[400443148,1767557441813,-716.08906364,0.00016438,2]
[400443149,1767557441825,-716.08906364,0.00016438,2]
[400443150,1767557441834,-716.08906364,0.00016438,2]
[400443151,1767557441843,-716.08906364,0.00016438,2]
[400443152,1767557441852,-716.08906364,0.00016438,2]
[400443153,1767557441862,-716.08906364,0.00016438,2]
[400443154,1767557441871,-716.08906364,0.00016438,2]
[400443155,1767557441880,-716.08906364,0.00016438,2]
[400443156,1767557441890,-716.08906364,0.00016438,2]
[400443157,1767557441899,-716.08906364,0.00016438,2]
[400443158,1767557441908,-716.08906364,0.00016438,2]
[400443159,1767557441920,-716.08906364,0.00016438,2]
[400443160,1767557441930,-716.08906364,0.00016438,2]
[400443161,1767557441939,-716.08906364,0.00016438,2]
[400443162,1767557441948,-716.08906364,0.00016438,2]
[400443163,1767557441958,-716.08906364,0.00016438,2]
[400443164,1767557441967,-716.08906364,0.00016438,2]
[400443165,1767557441976,-716.08906364,0.00016438,2]
[400443166,1767557441985,-716.08906364,0.00016438,2]
[400443167,1767557441994,-716.08906364,0.00016438,2]
[400443168,1767557442003,-716.08906364,0.00016438,2]
[400443169,1767557442012,-716.08906364,0.00016438,2]
[400443170,1767557442021,-716.08906364,0.00016438,2]
[400443171,1767557442029,-716.08906364,0.00016438,2]
[400443172,1767557442038,-716.08906364,0.00016438,2]
[400443173,1767557442047,-716.08906364,0.00016438,2]
[400443174,1767557442057,-716.08906364,0.00016438,2]
[400443175,1767557442066,-716.08906364,0.00016438,2]
[400443176,1767557442075,-716.08906364,0.00016438,2]
[400443177,1767557442084,-716.08906362,0.00016438,2]
[400443178,1767557442094,-716.08906362,0.00016438,2]
[400443179,1767557442103,-716.08906362,0.00016438,2]
[400443180,1767557442112,-716.08906362,0.00016438,2]
[400443181,1767557442120,-716.08906362,0.00016438,2]
[400443182,1767557442129,-716.08906362,0.00016438,2]
[400443183,1767557442138,-716.08906362,0.00016438,2]
[400443184,1767557442148,-6923.67,0.00016438,2]
[400443185,1767557442157,-800.0,0.00016438,2]
[400443186,1767557442165,-2099.0,0.00016466,2]
[400443187,1767557442174,-237.07480166,0.00016468,2]
[400443188,1767557442183,-1500.0,0.00016468,2]
[400443189,1767557442192,-1500.0,0.00016468,2]
[400443190,1767557442202,-1500.0,0.00016468,2]
[400443191,1767557442211,-335.69,0.00016493,2]
[400443192,1767557442221,-1423.19,0.00016502,2]
[400443193,1767557442230,-500.0,0.0001652,2]
[400443194,1767557442239,-1000.0,0.00016521,2]
[400443195,1767557442248,-1000.0,0.00016521,2]
[400443196,1767557442258,-500.0,0.00016521,2]
[400443197,1767557442267,-1000.0,0.00016521,2]
[400443198,1767557442276,-500.90262975,0.00016521,2]
[400443199,1767557442286,-978.24155127,0.00016521,2]
[400443200,1767557442295,-1000.0,0.00016521,2]
[400443201,1767557442304,-500.0,0.00016521,2]
[400443202,1767557442313,-1000.0,0.00016521,2]
[400443203,1767557442322,-1000.0,0.00016521,2]
[400443204,1767557442332,-500.0,0.00016521,2]
[400443205,1767557442341,-1000.0,0.00016521,2]
[400443206,1767557442350,-500.0,0.00016521,2]
[400443207,1767557442360,-1000.0,0.00016521,2]
[400443208,1767557442370,-1000.0,0.00016521,2]
[400443209,1767557442379,-1000.0,0.00016521,2]
[400443210,1767557442389,-500.0,0.00016521,2]
[400443211,1767557442400,-1000.0,0.00016521,2]
[400443212,1767557442411,-500.0,0.00016521,2]
[400443213,1767557442422,-503.67303953,0.00016521,2]
[400443214,1767557442433,-1005.96387624,0.00016521,2]
[400443215,1767557442442,-1020.78153247,0.00016521,2]
[400443216,1767557442453,-500.0,0.00016521,2]
[400443217,1767557442463,-1000.0,0.00016521,2]
[400443218,1767557442473,-1000.0,0.00016521,2]
[400443219,1767557442482,-1000.0,0.00016521,2]
[400443220,1767557442492,-1000.0,0.00016521,2]
[400443221,1767557442502,-379.37708977,0.00016521,2]
[400443222,1767557442511,-1000.0,0.00016521,2]
[400443223,1767557442521,-500.82934742,0.00016521,2]
[400443225,1767557442530,-503.14800649,0.00016521,2]
[400443227,1767557442539,-1000.0,0.00016521,2]
[400443228,1767557442548,-190.40303512,0.00016521,2]
[400443229,1767557442558,-164.1404911,0.00016521,2]
[400443230,1767557442568,-1000.0,0.00016521,2]
[400443231,1767557442577,-1000.0,0.00016521,2]
[400443232,1767557442587,-300.62207839,0.00016521,2]
[400443233,1767557442599,-569.91608913,0.00016521,2]
[400443234,1767557442608,-176.92971067,0.00016521,2]
[400443235,1767557442617,-1000.0,0.00016521,2]
[400443236,1767557442626,-207.66,0.00016538,2]
[400443237,1767557442635,-420.0,0.00016594,2]
[400443238,1767557442645,-420.0,0.00016594,2]
[400443239,1767557442655,-1680.0,0.00016678,2]
[400443240,1767557442665,-600.0,0.00016682,2]
[400443241,1767557442678,-600.0,0.00016682,2]
[400443242,1767557442687,-600.0,0.00016682,2]
[400443243,1767557442696,-600.0,0.00016682,2]
[400443244,1767557442705,-600.0,0.00016682,2]
[400443245,1767557442715,-195.0,0.00016682,2]
[400443246,1767557442724,-250.0,0.00016682,2]
[400443247,1767557442734,-4464.9901239,0.00016737,2]
[400443248,1767557442745,-1423.19,0.00016776,2]
[400443249,1767557442755,-5591.75589583,0.00016784,2]
[400443250,1767557442764,-5459.4960519,0.00016784,2]
[400443251,1767557442774,-433.0,0.00016915,2]
[400443252,1767557442784,-170.46360933,0.00016922,2]
[400443253,1767557442794,-10000.0,0.00016968,2]
[400443254,1767557442803,-4451.648,0.00016992,2]
[400443255,1767557442812,-6547.0,0.00016992,2]
[400443256,1767557442822,-565.0,0.00016992,2]
[400443257,1767557442832,-3201.0,0.00016992,2]
[400443258,1767557442842,-250.0,0.00017,2]
[400443259,1767557442852,-500.0,0.00017,7]
[400443260,1767557442861,-500.0,0.00017,7]
[400443261,1767557442870,-500.0,0.00017,7]
[400443262,1767557442880,-466.31,0.00017,7]
[400443263,1767557442890,-2000.0,0.00017016,2]
[400443264,1767557442900,-640.31028063,0.00017016,2]
[400443265,1767557442912,-2000.0,0.00017016,2]
[400443266,1767557442922,-1423.19,0.0001705,2]
[400443267,1767557442932,-926.73386812,0.00017068,2]
[400443268,1767557442942,-888.04216595,0.00017068,2]
[400443269,1767557442953,-500.0,0.00017068,2]
[400443270,1767557442963,-1500.0,0.00017068,2]
[400443271,1767557442972,-349.75332306,0.00017068,2]
[400443272,1767557442980,-502.67154144,0.00017068,2]
[400443273,1767557442990,-1500.0,0.00017068,2]
[400443274,1767557443001,-1000.0,0.00017068,2]
[400443275,1767557443010,-500.0,0.00017068,2]
[400443276,1767557443020,-600.22634579,0.00017068,2]
[400443277,1767557443030,-500.0,0.00017068,2]
[400443278,1767557443040,-778.63852243,0.00017068,2]
[400443279,1767557443049,-500.9665977,0.00017068,2]
[400443280,1767557443059,-1500.0,0.00017068,2]
[400443281,1767557443068,-500.53069493,0.00017068,2]
[400443282,1767557443077,-1500.0,0.00017068,2]
[400443283,1767557443086,-1500.0,0.00017068,2]
[400443284,1767557443096,-1500.0,0.00017068,2]
[400443285,1767557443106,-469.49140295,0.00017068,2]
[400443286,1767557443115,-5591.75589583,0.00017156,2]
[400443287,1767557443124,-5459.4960519,0.00017156,2]
[400443288,1767557443133,-162.88157185,0.00017161,2]
[400443289,1767557443143,-966.0,0.0001719,2]
[400443290,1767557443152,-150.0,0.00017275,2]
[400443291,1767557443161,-150.0,0.00017275,2]
[400443292,1767557443170,-150.0,0.00017275,2]
[400443293,1767557443179,-150.0,0.00017275,2]
[400443294,1767557443188,-3465.0,0.00017275,2]
[400443295,1767557443197,-1404.0,0.00017275,2]
[400443296,1767557443209,-430.0,0.00017275,2]
[400443297,1767557443219,-966.0,0.00017289,2]
[400443298,1767557443228,-1423.19,0.00017324,2]
[400443299,1767557443238,-966.0,0.00017363,2]
[400443300,1767557443248,-207.66,0.00017365,2]
[400443301,1767557443258,-152.11909412,0.00017373,2]
[400443302,1767557443267,-966.0,0.00017377,2]
[400443303,1767557443278,-170.46360933,0.00017411,2]
[400443304,1767557443288,-287.61899177,0.00017434,2]
[400443305,1767557443299,-966.0,0.00017523,2]
[400443306,1767557443310,-5591.75589583,0.00017528,2]
[400443307,1767557443319,-5459.4960519,0.00017528,2]
[400443308,1767557443328,-801.86347734,0.00017534,2]
[400443309,1767557443337,-2500.0,0.00017564,2]
[400443310,1767557443347,-2500.0,0.00017564,2]
[400443311,1767557443357,-1423.19,0.00017598,2]
[400443312,1767557443367,-1693.3881944,0.00017616,2]
[400443313,1767557443376,-2000.0,0.00017616,2]
[400443314,1767557443386,-1991.73851592,0.00017616,2]
[400443315,1767557443396,-1503.0033088,0.00017616,2]
[400443316,1767557443406,-2000.0,0.00017616,2]
[400443317,1767557443415,-966.0,0.00017623,2]
[400443318,1767557443425,-361.74750535,0.0001764,2]
[400443319,1767557443434,-966.0,0.00017668,2]
[400443320,1767557443443,-966.0,0.00017685,2]
[400443321,1767557443453,-538.0,0.00017688,2]
[400443322,1767557443463,-1000.0,0.000177,2]
[400443323,1767557443473,-300.0,0.00017742,2]
[400443324,1767557443483,-966.0,0.00017773,2]
[400443325,1767557443492,-176.8649333,0.00017773,3]
[400443326,1767557443502,-1000.0,0.00017774,2]
[400443327,1767557443512,-963.27,0.00017781,2]
[400443328,1767557443522,-300.0,0.00017782,2]
[400443329,1767557443532,-300.0,0.00017793,2]
[400443330,1767557443541,-1000.0,0.000178,2]
[400443331,1767557443550,-300.0,0.00017802,2]
[400443332,1767557443560,-501.08142461,0.00017808,2]
[400443333,1767557443569,-500.0,0.00017808,2]
[400443334,1767557443578,-1000.0,0.00017808,2]
[400443335,1767557443587,-504.75468002,0.00017808,2]
[400443336,1767557443596,-1000.0,0.00017808,2]
[400443337,1767557443606,-1000.0,0.00017808,2]
[400443338,1767557443615,-1000.0,0.00017808,2]
[400443339,1767557443624,-1076.95721268,0.00017808,2]
[400443340,1767557443633,-500.0,0.00017808,2]
[400443341,1767557443642,-500.0,0.00017808,2]
[400443342,1767557443652,-504.23547705,0.00017808,2]
[400443343,1767557443661,-872.25891,0.0001782,2]
[400443344,1767557443675,-872.25892,0.0001782,2]
[400443345,1767557443684,-300.0,0.00017824,2]
[400443346,1767557443694,-1000.0,0.00017829,2]
[400443347,1767557443703,-872.25892,0.0001783,2]
[400443348,1767557443715,-200.0,0.00017856,2]
[400443349,1767557443725,-872.25892,0.0001786,2]
[400443350,1767557443734,-1423.19,0.00017872,2]
[400443351,1767557443747,-872.25892,0.0001788,2]
[400443352,1767557443757,-300.0,0.00017883,2]
[400443353,1767557443766,-230.0698606,0.00017897,2]
[400443354,1767557443776,-159.67108242,0.00017897,2]
[400443355,1767557443787,-230.06986059,0.00017899,2]
[400443356,1767557443796,-170.46360933,0.000179,2]
[400443357,1767557443807,-10274.4827863,0.000179,3]
[400443358,1767557443816,-5591.75589583,0.000179,2]
[400443359,1767557443826,-5459.4960519,0.000179,2]
[400443360,1767557443835,-1000.0,0.000179,2]
[400443361,1767557443845,-3747.52738686,0.000179,2]
[400443362,1767557443854,-162.88157185,0.000179,2]
[400443363,1767557443864,-230.06986059,0.000179,2]
[400443364,1767557443874,-11016.23768794,0.000179,2]
[400443365,1767557443883,-1000.0,0.00017909,2]
[400443366,1767557443893,-872.25891,0.0001791,2]
[400443367,1767557443902,-300.0,0.00017962,2]
[400443368,1767557443911,-150.0,0.00017973,2]
[400443369,1767557443920,-300.0,0.00017976,2]
[400443370,1767557443929,-300.0,0.00017977,2]
[400443371,1767557443938,-538.0,0.00017987,2]
[400443372,1767557443948,-235.84568342,0.0001799,2]
[400443373,1767557443957,-500.0,0.00017996,2]
[400443374,1767557443967,-492.10833622,0.00017996,2]
[400443375,1767557443976,-522.69749362,0.00017996,2]
[400443376,1767557443986,-151.0,0.00017997,2]
[400443377,1767557443995,-308.96154463,0.00017999,2]
[400443378,1767557444004,-300.0,0.00017999,2]
[400443379,1767557444014,-4911.85258955,0.00017999,2]
[400443380,1767557444023,-399625.59599452,0.00018,2]
[400443381,1767557444034,-2245276.00100097,0.00018,2]
[400443382,1767557444077,191.39067736,0.00016992,2]
[400443383,1767557444126,9500.01,0.00014483,2]
[400443384,1767557444155,10000.01,0.00014483,2]
[400443385,1767557444183,10000.01,0.00014483,2]
[400443386,1767557444209,12800.0733675,0.00014483,2]
[400443388,1767557444237,6222.73068545,0.00014483,2]
[400443389,1767557444263,12570.70021882,0.00014483,2]
[400443390,1767557444294,6964.09619224,0.00014483,2]
[400443391,1767557444328,-12562.65230969,0.00014483,2]
[400443392,1767557444343,-867.26068256,0.00014483,2]
[400443397,1767557445441,-183618.6741377,0.00014483,2]
[400443401,1767557445689,-302.0,0.00014483,2]
[400443406,1767557468706,-313.40948988,0.00014483,2]
[400443407,1767557470707,-182.8671503,0.00014483,2]
[400443408,1767557472848,-188.41548492,0.00014483,2]
[400443409,1767557474329,-169.74276481,0.00014483,2]
[400443410,1767557475798,-465.19931131,0.00014483,2]
[400443411,1767557478469,-188.86471918,0.00014483,2]
[400443412,1767557481430,-192.95328138,0.00014483,2]
[400443414,1767557486811,-243.49256888,0.00014483,2]
[400443415,1767557489230,-210.69672072,0.00014483,2]
[400443416,1767557492443,-266.7132798,0.00014483,2]
[400443418,1767557494039,640.803,0.00014193,2]
[400443419,1767557494737,500.0,0.00014475,2]
[400443420,1767557495494,-309.54306662,0.00014483,2]
[400443421,1767557498151,-332.35303364,0.00014483,2]
[400443422,1767557499347,180.84955942,0.00014475,2]
[400443428,1767557501191,500.0,0.00014475,2]
[400443429,1767557502246,-533.5562686,0.00014483,2]
[400443430,1767557505824,418.18170645,0.00014475,2]
[400443433,1767557508811,-197.26001672,0.00014483,2]
[400443434,1767557510322,500.0,0.00014475,2]
[400443435,1767557510364,-258.65582907,0.00014483,2]
[400443436,1767557510417,500.0,0.00014475,2]
[400443437,1767557510483,500.0,0.00014475,2]
[400443438,1767557510536,500.0,0.00014475,2]
[400443440,1767557510587,500.0,0.00014475,2]
[400443441,1767557510640,500.0,0.00014475,2]
[400443442,1767557510697,500.0,0.00014475,2]
[400443443,1767557510750,500.0,0.00014475,2]
[400443444,1767557510808,500.0,0.00014475,2]
[400443445,1767557510862,543.42014901,0.00014475,2]
[400443446,1767557510914,500.0,0.00014475,2]
[400443447,1767557515214,-168.42467707,0.00014483,2]
[400443448,1767557518106,-280.34989237,0.00014483,2]
[400443449,1767557520355,-287.45422444,0.00014483,2]
[400443450,1767557521258,300.0,0.00014482,2]
[400443451,1767557522100,150.0,0.00014482,2]
[400443452,1767557524757,-340.78422959,0.00014483,2]
[400443453,1767557526991,-155.02819842,0.00014483,2]
[400443454,1767557527126,177.31565734,0.00014438,2]
[400443455,1767557528617,-223.4736911,0.00014483,2]
[400443456,1767557534026,-321.61320066,0.00014483,2]
[400443457,1767557536042,-376.16799028,0.00014483,2]
[400443458,1767557536117,630.24637889,0.00014475,2]
[400443459,1767557538762,-193.52154911,0.00014483,2]
[400443460,1767557543639,-249.67240396,0.00014483,2]
[400443461,1767557546743,-500.0,0.00014483,2]
[400443462,1767557549642,-435.69790178,0.00014483,2]
[400443463,1767557552063,-181.27526242,0.00014483,2]
[400443464,1767557554050,-244.15581748,0.00014483,2]
[400443465,1767557558286,-164.77834246,0.00014483,2]
[400443466,1767557559839,-250.55035276,0.00014483,2]
[400443467,1767557566073,-210.22252446,0.00014483,2]
[400443468,1767557568767,-186.68173507,0.00014483,2]
[400443469,1767557573073,-336.0349912,0.00014483,2]
[400443470,1767557575261,-429.5269318,0.00014483,2]
[400443471,1767557578392,-234.07253898,0.00014483,2]
[400443472,1767557581223,300.0,0.00014482,2]
[400443473,1767557581600,162.88157185,0.00014438,2]
[400443474,1767557582365,-204.01120771,0.00014483,2]
[400443475,1767557586447,-287.17334878,0.00014483,2]
[400443476,1767557591274,-225.43491,0.00014483,2]
[400443477,1767557594459,-175.88721697,0.00014483,2]
[400443478,1767557597814,-308.75745378,0.00014483,2]
[400443479,1767557597861,496.31197704,0.00014438,2]
[400443480,1767557597884,1980.92014687,0.00014438,2]
[400443481,1767557600916,-470.12465888,0.00014483,2]
[400443482,1767557605198,-173.10566553,0.00014483,2]
[400443483,1767557609055,-186.59051029,0.00014483,2]
[400443484,1767557612406,-203.13612012,0.00014483,2]
[400443485,1767557614209,-208.2668177,0.00014483,2]
[400443487,1767557618038,-194.09596164,0.00014483,2]
[400443488,1767557621296,-316.98977768,0.00014483,2]
[400443489,1767557623299,-440.98135138,0.00014483,2]
[400443490,1767557625438,-236.53913856,0.00014483,2]
[400443491,1767557630002,-338.58007177,0.00014483,2]
[400443492,1767557631541,-172.18448779,0.00014483,2]
[400443493,1767557633723,-294.09938336,0.00014483,2]
[400443494,1767557637398,-222.28351912,0.00014483,2]
[400443495,1767557644660,-259.73189403,0.00014483,2]
[400443496,1767557646261,-365.63287425,0.00014483,2]
[400443497,1767557649033,-296.97286097,0.00014483,2]
[400443498,1767557654899,-250.44480641,0.00014483,2]
[400443499,1767557656958,-303.37599486,0.00014483,2]
[400443500,1767557662412,-210.26006377,0.00014483,2]
[400443501,1767557667842,-269.54021122,0.00014483,2]
[400443502,1767557671244,-341.30165096,0.00014483,2]
[400443503,1767557677288,-317.60643956,0.00014483,2]
[400443504,1767557679872,-166.21520358,0.00014483,2]
[400443505,1767557682783,-175.35010797,0.00014483,2]
[400443506,1767557688192,-178.38679934,0.00014483,2]
[400443507,1767557689892,-173.19292821,0.00014483,2]
[400443508,1767557692430,-300.43692962,0.00014483,2]
[400443509,1767557694693,-221.3506559,0.00014483,2]
[400443510,1767557697268,-331.8690495,0.00014483,2]
[400443511,1767557701281,1200.0,0.00014482,2]
[400443512,1767557701489,-214.90210531,0.00014483,2]
[400443513,1767557701765,150.0,0.00014482,2]
[400443514,1767557701969,300.0,0.00014482,2]
[400443515,1767557704572,-166.67037824,0.00014483,2]
[400443516,1767557706052,-174.42241913,0.00014483,2]
[400443517,1767557706821,222.3675571,0.00014482,2]
[400443519,1767557709768,-168.43849821,0.00014483,2]
[400443520,1767557712965,-273.92708643,0.00014483,2]
[400443521,1767557717361,-194.90053023,0.00014483,2]
[400443522,1767557721054,-415.4215435,0.00014483,2]
[400443523,1767557722057,500.0,0.00014482,2]
[400443524,1767557722098,500.0,0.00014482,2]
[400443525,1767557722139,500.0,0.00014482,2]
[400443526,1767557722180,500.0,0.00014482,2]
[400443527,1767557722222,500.0,0.00014482,2]
[400443528,1767557722262,580.92059493,0.00014482,2]
[400443529,1767557722304,500.0,0.00014482,2]
[400443530,1767557722344,500.0,0.00014482,2]
[400443531,1767557722383,500.0,0.00014482,2]
[400443532,1767557722423,500.0,0.00014482,2]
[400443533,1767557722467,500.0,0.00014482,2]
[400443534,1767557722507,500.0,0.00014482,2]
[400443535,1767557722548,65.8017011,0.00014482,2]
[400443536,1767557722575,434.1982989,0.00014482,2]
[400443537,1767557722616,500.0,0.00014482,2]
[400443538,1767557722655,-199.94228141,0.00014483,2]
[400443539,1767557722697,500.0,0.00014482,2]
[400443540,1767557722738,500.0,0.00014482,2]
[400443541,1767557722798,500.0,0.00014482,2]
[400443542,1767557724925,-178.69160164,0.00014483,2]
[400443543,1767557727551,-191.29824996,0.00014483,2]
[400443544,1767557729229,-321.30839836,0.00014483,2]
[400443545,1767557732854,-192.99831103,0.00014483,2]
[400443546,1767557734905,-324.68974004,0.00014483,2]
[400443547,1767557737295,-203.85999983,0.00014483,2]
[400443548,1767557739950,-264.36260304,0.00014483,2]
[400443549,1767557743912,500.0,0.00014482,2]
[400443550,1767557743971,580.92059493,0.00014482,2]
[400443551,1767557744011,500.0,0.00014482,2]
[400443552,1767557744049,500.0,0.00014482,2]
[400443553,1767557747397,-255.488989,0.00014483,2]
[400443554,1767557749618,-190.29659076,0.00014483,2]
[400443555,1767557752882,-212.7008551,0.00014483,2]
[400443556,1767557756939,500.0,0.00014482,2]
[400443557,1767557759943,185.34829154,0.00014482,2]
[400443558,1767557760921,-359.07580588,0.00014483,2]
[400443559,1767557761358,300.0,0.00014482,2]
[400443560,1767557765058,-347.09886432,0.00014483,2]
[400443561,1767557767194,-305.44719933,0.00014483,2]
[400443562,1767557769314,-238.92681915,0.00014483,2]
[400443563,1767557771337,500.0,0.00014482,2]
[400443564,1767557771390,222.50926809,0.00014482,2]
[400443565,1767557771975,500.0,0.00014482,2]
[400443566,1767557772035,176.63620465,0.00014482,2]
[400443567,1767557775526,-158.44294269,0.00014483,2]
[400443568,1767557778256,-253.84061876,0.00014483,2]
[400443569,1767557779825,-175.14988372,0.00014483,2]
[400443570,1767557781821,-297.37345074,0.00014483,2]
[400443571,1767557784826,-196.34804293,0.00014483,2]
[400443572,1767557789832,237.50489522,0.00014482,2]
[400443573,1767557789969,397.36976184,0.00014482,2]
[400443574,1767557790226,-188.31668313,0.00014483,2]
[400443575,1767557793133,-367.0420815,0.00014483,2]
[400443576,1767557796171,347.72549944,0.00014482,2]
[400443577,1767557797084,162.88157185,0.00014397,2]
[400443578,1767557797566,-207.44371838,0.00014483,2]
[400443579,1767557800369,-152.90274074,0.00014483,2]
[400443580,1767557801922,-358.93138377,0.00014483,2]
[400443581,1767557803234,252.61878135,0.00014482,2]
[400443582,1767557806589,-203.37762642,0.00014483,2]
[400443583,1767557808611,-182.95573177,0.00014483,2]
[400443584,1767557813285,-305.71627241,0.00014483,2]
[400443585,1767557815023,-205.90101924,0.00014483,2]
[400443586,1767557816066,182.95573177,0.00014482,2]
[400443587,1767557819139,566.37510215,0.00014482,2]
[400443588,1767557821513,300.0,0.00014482,2]
[400443589,1767557821803,-333.17934848,0.00014483,2]
[400443592,1767557832454,174.33665649,0.00014482,2]
[400443593,1767557832787,478.62934178,0.00014482,2]
[400443594,1767557832814,21.37065822,0.00014482,2]
[400443595,1767557832857,324.75823295,0.00014482,2]
[400443596,1767557833226,-185.79476472,0.00014483,2]
[400443597,1767557837324,-164.37528134,0.00014483,2]
[400443598,1767557838814,-218.45570258,0.00014483,2]
[400443599,1767557839964,203.37762642,0.00014482,2]
[400443600,1767557840889,-229.86321288,0.00014483,2]
[400443601,1767557845875,-333.88225715,0.00014483,2]
[400443602,1767557848530,-214.66824121,0.00014483,2]
[400443603,1767557853031,-246.03050284,0.00014483,2]
[400443604,1767557856734,-180.79882043,0.00014483,2]
[400443605,1767557857260,500.0,0.00014383,2]
[400443606,1767557858265,-195.57434488,0.00014483,2]
[400443607,1767557862226,-162.80669965,0.00014483,2]
[400443608,1767557863374,568.62574864,0.00014482,2]
[400443609,1767557866007,-390.67417938,0.00014483,2]
[400443610,1767557870035,-199.09371227,0.00014483,2]
[400443611,1767557871577,-155.93683141,0.00014483,2]
[400443612,1767557873225,500.0,0.00014482,2]
[400443613,1767557873274,373.85829495,0.00014482,2]
[400443614,1767557873742,-261.58490989,0.00014483,2]
[400443615,1767557879495,-155.19416157,0.00014483,2]
[400443616,1767557881827,150.0,0.00014482,2]
[400443617,1767557883294,500.0,0.00014482,2]
[400443618,1767557885823,-288.74544001,0.00014483,2]
[400443619,1767557889063,-166.82065152,0.00014483,2]
[400443620,1767557891750,-289.37263991,0.00014483,2]
[400443621,1767557892113,3297.29601755,0.00014383,2]